fUST/lending_fUST_20250716
["ID","MTS","AMOUNT","RATE_DAILY","PERIOD"]
[372406593,1752631849937,-460.0,0.00022152,2]
[372406594,1752631849947,-408.891,0.00023834,2]
[372406595,1752631849957,-164.696674,0.00024893,7]
[372406596,1752631849968,-384.07216311,0.00024896,2]
[372406597,1752631849981,-2936.21332393,0.00024896,2]
[372406598,1752631849993,-4164.06287006,0.00024896,2]
[372406599,1752631850006,-817.62544325,0.00024896,2]
[372406600,1752631850026,-1353.989508,0.00024896,2]
[372406601,1752631850166,-5000.0,0.00020303,2]
[372406602,1752631850175,-460.0,0.00020507,2]
[372406603,1752631850185,-460.0,0.00022426,2]
[372406604,1752631850194,-460.0,0.000227,2]
[372406605,1752631850204,-460.0,0.00022974,2]
[372406606,1752631850213,-183.94204391,0.00023248,2]
[372406607,1752631850225,-276.05795609,0.00023248,2]
[372406608,1752631850234,-460.0,0.00023522,2]
[372406609,1752631850244,-460.0,0.00023796,2]
[372406610,1752631850254,-460.0,0.0002407,2]
[372406611,1752631850265,-460.0,0.00024344,2]
[372406612,1752631850274,-460.0,0.00024618,2]
[372406613,1752631850284,-362.7284604,0.00024892,2]
[372406614,1752631850296,-97.2715396,0.00024892,2]
[372406615,1752631850309,-391.17684548,0.00024896,2]
[372406616,1752631850322,-270.9325,0.00024896,2]
[372406617,1752631850333,-504.3,0.00024896,2]
[372406618,1752631850345,-3310.1455,0.00024896,2]
[372406619,1752631850356,-209.94690578,0.00024896,2]
[372406620,1752631850366,-151.0,0.00024896,7]
[372406621,1752631850376,-194.572564,0.00024896,7]
[372406622,1752631850385,-151.0,0.00024896,7]
[372406623,1752631850395,-151.0,0.00024896,7]
[372406624,1752631850405,-151.0,0.00024896,7]
[372406625,1752631850415,-151.0,0.00024896,7]
[372406626,1752631850424,-200.43248474,0.00024899,2]
[372406627,1752631850435,-200.0,0.00024899,2]
[372406628,1752631850444,-481.31,0.000249,2]
[372406629,1752631850454,-151.355181,0.000249,7]
[372406630,1752631850464,-151.0,0.000249,7]
[372406631,1752631850474,-65.05006442,0.000249,7]
[372406632,1752631850557,-86.38642358,0.000249,7]
[372406633,1752631850567,-151.0,0.000249,7]
[372406634,1752631850576,-146.34357642,0.000249,7]
[372406635,1752631850687,-429.1687796,0.00023616,2]
[372406636,1752631850697,-164.696674,0.00024893,7]
[372406637,1752631850707,-5.70501658,0.000249,7]
[372406638,1752631850717,-151.342775,0.000249,7]
[372406639,1752631850727,-151.0,0.000249,7]
[372406640,1752631850736,-692.0,0.000249,2]
[372406641,1752631850748,-692.0,0.000249,2]
[372406642,1752631850758,-692.0,0.000249,2]
[372406643,1752631850768,-692.0,0.000249,2]
[372406644,1752631850778,-692.0,0.000249,2]
[372406645,1752631850788,-692.0,0.000249,2]
[372406646,1752631850797,-692.0,0.000249,2]
[372406647,1752631850807,-692.0,0.000249,2]
[372406648,1752631850819,-692.0,0.000249,2]
[372406649,1752631850909,-692.0,0.000249,2]
[372406650,1752631850919,-151.0,0.000249,7]
[372406651,1752631850929,-151.0,0.000249,7]
[372406652,1752631850938,-151.0,0.000249,7]
[372406653,1752631850948,-245.0,0.000249,7]
[372406654,1752631850958,-152.514382,0.000249,7]
[372406655,1752631850969,-151.0,0.000249,7]
[372406656,1752631850979,-211.803197,0.000249,7]
[372406657,1752631850988,-211.803197,0.000249,7]
[372406658,1752631850998,-151.0,0.000249,7]
[372406659,1752631851007,-199.695222,0.000249,7]
[372406660,1752631851020,-151.330709,0.000249,7]
[372406661,1752631851030,-151.0,0.000249,7]
[372406662,1752631851040,-151.0,0.000249,7]
[372406663,1752631851049,-151.0,0.000249,7]
[372406664,1752631851059,-151.0,0.000249,7]
[372406665,1752631851070,-151.772733,0.000249,7]
[372406666,1752631851080,-151.0,0.000249,7]
[372406667,1752631851090,-151.0,0.000249,7]
[372406668,1752631851101,-151.0,0.000249,7]
[372406669,1752631851111,-151.0,0.000249,7]
[372406670,1752631851121,-208.451723,0.000249,7]
[372406671,1752631851130,-236.031256,0.000249,7]
[372406672,1752631851140,-236.031256,0.000249,7]
[372406673,1752631851149,-236.031256,0.000249,7]
[372406674,1752631851159,-236.031256,0.000249,7]
[372406675,1752631851168,-153.273972,0.000249,7]
[372406676,1752631851178,-151.0,0.000249,7]
[372406677,1752631851188,-151.798189,0.000249,7]
[372406678,1752631851198,-258.241687,0.000249,7]
[372406679,1752631851207,-258.241687,0.000249,7]
[372406680,1752631851218,-258.241687,0.000249,7]
[372406681,1752631851227,-258.241687,0.000249,7]
[372406682,1752631851238,-151.0,0.000249,7]
[372406683,1752631851247,-227.355336,0.000249,7]
[372406684,1752631851257,-151.0,0.000249,7]
[372406685,1752631851266,-151.0,0.000249,7]
[372406686,1752631851276,-151.0,0.000249,7]
[372406687,1752631851285,-151.0,0.000249,7]
[372406688,1752631851295,-151.0,0.000249,7]
[372406689,1752631851305,-151.0,0.000249,7]
[372406690,1752631851314,-151.0,0.000249,7]
[372406691,1752631851324,-151.0,0.000249,7]
[372406692,1752631851333,-152.137167,0.000249,7]
[372406693,1752631851343,-151.0,0.000249,7]
[372406694,1752631851352,-151.0,0.000249,7]
[372406695,1752631851362,-151.126822,0.000249,2]
[372406696,1752631851371,-151.0,0.000249,7]
[372406697,1752631851381,-151.0,0.000249,7]
[372406698,1752631851390,-151.958385,0.000249,7]
[372406699,1752631851400,-151.0,0.000249,7]
[372406700,1752631851409,-151.0,0.000249,7]
[372406701,1752631851418,-151.0,0.000249,7]
[372406702,1752631851427,-151.643406,0.000249,7]
[372406703,1752631851438,-151.714213,0.000249,7]
[372406704,1752631851448,-203.521275,0.000249,7]
[372406705,1752631851458,-203.521275,0.000249,7]
[372406706,1752631851469,-151.0,0.000249,7]
[372406707,1752631851480,-151.0,0.000249,7]
[372406708,1752631851490,-390.078489,0.000249,7]
[372406709,1752631851500,-390.078489,0.000249,7]
[372406710,1752631851510,-102533.95027022,0.000249,2]
[372406711,1752631851523,-254.77268796,0.000249,2]
[372406712,1752631851535,-807.18846441,0.000249,2]
[372406713,1752631851551,-460.8268972,0.000249,2]
[372406714,1752631851562,-3309.78856546,0.000249,2]
[372406715,1752631851773,-35023.43497345,0.000249,2]
[372406716,1752632050272,159.30869984,0.00025564,50]
[372406718,1752632215697,201.144799,0.00013699,2]
[372406723,1752632403085,2070.9,0.0001631,2]
[372406724,1752632480681,-182.316255,0.00018637,2]
[372406725,1752632480708,-205.71167374,0.00018826,2]
[372406726,1752632480732,-496.97207126,0.00019213,2]
[372406755,1752632707794,4162.7651363,0.0001631,2]
[372406756,1752632707819,14528.6127017,0.0001631,2]
[372406759,1752632733128,-2259.40776346,0.00019021,2]
[372406760,1752632749084,-1600.44803743,0.00019021,2]
[372406763,1752632801033,-1140.14419911,0.00019021,2]
[372406764,1752632801059,-180.2945214,0.00019032,2]
[372406765,1752632801081,-300.0,0.00019249,2]
[372406766,1752632801101,-1200.0,0.00019249,2]
[372406767,1752632801122,-152.62749186,0.00019249,2]
[372406768,1752632801143,-180.0,0.00019249,2]
[372406769,1752632801164,-4728.93378763,0.0001925,2]
[372406770,1752632826077,-1050.22738796,0.00019058,2]
[372406771,1752632831084,-1218.29604529,0.00019058,2]
[372406772,1752632834088,-2731.47656675,0.00019058,2]
[372406773,1752632834109,-195.79208783,0.0001915,2]
[372406774,1752632834131,-300.0,0.00019249,2]
[372406775,1752632834152,-4154.30065002,0.0001925,2]
[372406776,1752632837143,-9307.47040811,0.0001925,2]
[372406778,1752632863905,160.06698885,0.00025563,120]
[372406779,1752632884193,1809.85911513,0.00025563,60]
[372406780,1752632893913,151.74064679,0.00025563,120]
[372406781,1752632917659,154.81468359,0.00025,120]
[372406782,1752633003085,154.0,0.0001631,2]
[372406815,1752633032498,-281.95768232,0.00019057,2]
[372406826,1752633032552,-4718.04231768,0.00019057,2]
[372406829,1752633032563,-300.0,0.00019249,2]
[372406831,1752633032575,-300.0,0.00019249,2]
[372406833,1752633032586,-1200.0,0.00019249,2]
[372406835,1752633032597,-300.0,0.00019249,2]
[372406838,1752633032609,-461.41211437,0.0001925,2]
[372406840,1752633032619,-461.07635859,0.0001925,2]
[372406842,1752633032630,-460.9507595,0.0001925,2]
[372406844,1752633032641,-461.75923118,0.0001925,2]
[372406846,1752633032651,-460.0,0.0001925,2]
[372406848,1752633032661,-474.02946274,0.0001925,2]
[372406850,1752633032671,-461.11176387,0.0001925,2]
[372406853,1752633032684,-460.89287944,0.0001925,2]
[372406855,1752633032694,-460.0,0.0001925,2]
[372406857,1752633032704,-461.60022466,0.0001925,2]
[372406859,1752633032715,-22617.30585924,0.0001925,2]
[372406861,1752633032729,-502.64324864,0.00019308,2]
[372406863,1752633032740,-666.0,0.00019408,2]
[372406865,1752633032751,-7842.4114867,0.00019408,2]
[372406868,1752633032762,-294.54288016,0.00019999,2]
[372406870,1752633032773,-201.144799,0.00020187,2]
[372406871,1752633032784,-502.64324858,0.00020188,2]
[372406872,1752633032795,-460.0,0.00020406,2]
[372406873,1752633032808,-1215.59,0.00020406,2]
[372406874,1752633032820,-460.0,0.00020406,2]
[372406875,1752633032832,-460.0,0.00020406,2]
[372406876,1752633032843,-460.0,0.00020406,2]
[372406877,1752633032855,-460.0,0.00020406,2]
[372406878,1752633032865,-460.0,0.00020406,2]
[372406879,1752633032878,-460.0,0.00020406,2]
[372406880,1752633032889,-460.0,0.00020406,2]
[372406881,1752633032901,-460.0,0.00020407,2]
[372406882,1752633032912,-470.58266324,0.00020407,2]
[372406883,1752633032923,-461.65546199,0.00020407,2]
[372406884,1752633032934,-463.07030859,0.00020407,2]
[372406885,1752633032946,-460.92928558,0.00020407,2]
[372406886,1752633032958,-463.03708655,0.00020407,2]
[372406887,1752633032968,-460.77734386,0.00020407,2]
[372406888,1752633032983,-459.8971425,0.00020407,2]
[372406889,1752633032994,-465.78645827,0.00020407,2]
[372406890,1752633033006,-460.0,0.00020407,2]
[372406891,1752633033018,-465.68929653,0.00020407,2]
[372406892,1752633033029,-460.0,0.00020407,2]
[372406893,1752633033041,-462.97037541,0.00020407,2]
[372406894,1752633033052,-462.09033924,0.00020407,2]
[372406895,1752633033062,-510.36257159,0.00020407,2]
[372406896,1752633033073,-194.3627881,0.00020407,2]
[372406897,1752633033084,-460.0,0.00020407,2]
[372406898,1752633033096,-208.58773757,0.00020407,2]
[372406899,1752633033107,-500.0,0.00020407,2]
[372406900,1752633033118,-468.60161933,0.00020407,2]
[372406901,1752633033130,-460.0,0.00020408,2]
[372406902,1752633033140,-436.80879138,0.00020408,2]
[372406903,1752633033151,-460.0,0.00020408,2]
[372406904,1752633033162,-460.0,0.00020408,2]
[372406905,1752633033172,-460.0,0.00020408,2]
[372406906,1752633033183,-461.09143393,0.00020408,2]
[372406907,1752633033194,-461.73092169,0.00020408,2]
[372406908,1752633033205,-460.0,0.00020408,2]
[372406909,1752633033216,-461.88255435,0.00020408,2]
[372406910,1752633033228,-460.0,0.00020408,2]
[372406911,1752633033240,-460.0,0.00020408,2]
[372406912,1752633033252,-461.48398972,0.00020408,2]
[372406913,1752633033265,-461.06117179,0.00020408,2]
[372406914,1752633033276,-460.0,0.00020408,2]
[372406915,1752633033290,-460.0,0.00020408,2]
[372406916,1752633033303,-460.0,0.00020408,2]
[372406917,1752633033315,-460.0,0.00020408,2]
[372406918,1752633033328,-460.0,0.00020408,2]
[372406919,1752633033339,-460.0,0.00020408,2]
[372406920,1752633033349,-460.0,0.00020408,2]
[372406921,1752633033359,-460.0,0.00020408,2]
[372406922,1752633033369,-461.74928117,0.00020408,2]
[372406923,1752633033379,-460.0,0.00020408,2]
[372406924,1752633033394,-460.0,0.00020408,2]
[372406925,1752633033405,-461.82119784,0.00020408,2]
[372406926,1752633033416,-460.0,0.00020408,2]
[372406927,1752633033449,-474.36213804,0.00020408,2]
[372406928,1752633033460,-460.0,0.00020408,2]
[372406929,1752633033473,-460.0,0.00020408,2]
[372406930,1752633033486,-460.46920298,0.00020408,2]
[372406931,1752633033497,-1000.0,0.00020408,2]
[372406932,1752633033508,-460.0,0.00020408,2]
[372406933,1752633033519,-460.0,0.00020408,2]
[372406934,1752633033530,-460.82475903,0.00020408,2]
[372406935,1752633033541,-461.1931662,0.00020408,2]
[372406936,1752633033552,-461.43609408,0.00020408,2]
[372406937,1752633033563,-460.0,0.00020408,2]
[372406938,1752633033573,-461.76907943,0.00020408,2]
[372406939,1752633033583,-461.57116041,0.00020408,2]
[372406940,1752633033601,-460.34760083,0.00020408,2]
[372406941,1752633033615,-460.0,0.00020408,2]
[372406942,1752633033626,-463.15686374,0.00020408,2]
[372406943,1752633033643,-463.30609476,0.00020408,2]
[372406944,1752633033658,-460.79970362,0.00020408,2]
[372406945,1752633033669,-467.19279289,0.00020408,2]
[372406946,1752633033679,-460.81521243,0.00020408,2]
[372406947,1752633033836,-461.40467196,0.00020408,2]
[372406948,1752633033850,-460.20822414,0.00020408,2]
[372406949,1752633033860,-463.8953243,0.00020408,2]
[372406950,1752633033870,-463.38670428,0.00020408,2]
[372406951,1752633033880,-176.14642923,0.00020408,2]
[372406952,1752633033890,-460.76661156,0.00020408,2]
[372406953,1752633033899,-462.60384915,0.00020408,2]
[372406954,1752633033909,-496.28891342,0.00020408,2]
[372406955,1752633033918,-460.64255534,0.00020408,2]
[372406956,1752633033929,-461.68856533,0.00020408,2]
[372406957,1752633033939,-500.0,0.00020408,2]
[372406958,1752633033948,-500.0,0.00020408,2]
[372406959,1752633033958,-500.0,0.00020408,2]
[372406960,1752633033967,-500.0,0.00020408,2]
[372406961,1752633033977,-500.0,0.00020408,2]
[372406962,1752633033987,-500.0,0.00020408,2]
[372406963,1752633033997,-460.25588422,0.00020408,2]
[372406964,1752633034007,-460.53109948,0.00020408,2]
[372406965,1752633034017,-461.47854519,0.00020408,2]
[372406966,1752633034027,-462.67201187,0.00020408,2]
[372406967,1752633034037,-460.50358472,0.00020408,2]
[372406968,1752633034047,-500.0,0.00020408,2]
[372406969,1752633034057,-500.0,0.00020408,2]
[372406970,1752633034066,-332.18183577,0.00020408,2]
[372406971,1752633034076,-460.0,0.00020408,2]
[372406972,1752633034086,-460.35224612,0.00020408,2]
[372406973,1752633034096,-461.1790533,0.00020408,2]
[372406974,1752633034105,-461.32233822,0.00020408,2]
[372406975,1752633034115,-460.0,0.00020408,2]
[372406976,1752633034124,-279.5895213,0.00020408,2]
[372406977,1752633034134,-460.39518067,0.00020408,2]
[372406978,1752633034144,-465.55062524,0.00020408,2]
[372406979,1752633034154,-460.45232228,0.00020408,2]
[372406980,1752633034164,-168.26964712,0.00020408,2]
[372406981,1752633034174,-34602.50512223,0.00020409,2]
[372407015,1752633038248,-462.96482756,0.0001925,2]
[372407018,1752633038258,-478.73,0.00020406,2]
[372407020,1752633038267,-460.0,0.00020407,2]
[372407022,1752633038277,-460.0,0.00020407,2]
[372407024,1752633038287,-86330.15460949,0.00020409,2]
[372407026,1752633038296,-500.0,0.00020473,2]
[372407028,1752633038306,-412.76,0.000205,2]
[372407030,1752633038316,-500.0,0.00020506,2]
[372407032,1752633038325,-461.73795627,0.00020507,2]
[372407033,1752633038335,-462.67202119,0.00020507,2]
[372407034,1752633038344,-460.97488387,0.00020507,2]
[372407035,1752633038354,-428.86078955,0.00020507,2]
[372407036,1752633038363,-460.51803188,0.00020507,2]
[372407037,1752633038373,-471.57159384,0.00020507,2]
[372407038,1752633038382,-461.20371342,0.00020507,2]
[372407039,1752633038394,-459.0,0.00020507,2]
[372407040,1752633038404,-462.24579988,0.00020507,2]
[372407041,1752633038413,-311.11388567,0.00020507,2]
[372407042,1752633038423,-460.0,0.00020507,2]
[372407043,1752633038433,-460.0,0.00020507,2]
[372407044,1752633038442,-460.0,0.00020507,2]
[372407045,1752633038452,-460.0,0.00020507,2]
[372407046,1752633038465,-462.00737251,0.00020507,2]
[372407048,1752633038479,-460.0,0.00020507,2]
[372407049,1752633038488,-460.0,0.00020507,2]
[372407050,1752633038497,-460.0,0.00020507,2]
[372407051,1752633038507,-461.95453681,0.00020507,2]
[372407052,1752633038517,-460.38190585,0.00020507,2]
[372407053,1752633038526,-460.0,0.00020507,2]
[372407054,1752633038536,-461.07687659,0.00020507,2]
[372407055,1752633038545,-460.55761928,0.00020507,2]
[372407056,1752633038555,-279.93219741,0.00020507,2]
[372407057,1752633038565,-463.21369528,0.00020507,2]
[372407058,1752633038574,-462.01630555,0.00020507,2]
[372407059,1752633038584,-487.66553005,0.00020507,2]
[372407060,1752633038593,-465.22180461,0.00020507,2]
[372407061,1752633038603,-462.17364238,0.00020507,2]
[372407062,1752633038612,-465.68842775,0.00020507,2]
[372407063,1752633038621,-461.30532283,0.00020507,2]
[372407064,1752633038631,-461.13829674,0.00020507,2]
[372407065,1752633038640,-460.0,0.00020507,2]
[372407066,1752633038650,-462.84673967,0.00020507,2]
[372407069,1752633038660,-460.0,0.00020507,2]
[372407070,1752633038670,-463.55403028,0.00020507,2]
[372407073,1752633038681,-462.00314748,0.00020507,2]
[372407074,1752633038692,-460.0,0.00020507,2]
[372407077,1752633038710,-460.0,0.00020507,2]
[372407079,1752633038720,-468.34021565,0.00020507,2]
[372407081,1752633038731,-462.98753054,0.00020507,2]
[372407082,1752633038740,-465.46566513,0.00020507,2]
[372407085,1752633038752,-461.04256423,0.00020507,2]
[372407087,1752633038764,-460.0,0.00020507,2]
[372407089,1752633038774,-461.6680763,0.00020507,2]
[372407091,1752633038784,-464.30335693,0.00020507,2]
[372407093,1752633038793,-467.2504528,0.00020507,2]
[372407095,1752633038804,-460.0,0.00020507,2]
[372407097,1752633038814,-502.95573782,0.00020507,2]
[372407099,1752633038824,-460.0,0.00020507,2]
[372407101,1752633038833,-460.0,0.00020507,2]
[372407103,1752633038843,-460.0,0.00020507,2]
[372407105,1752633038852,-460.0,0.00020507,2]
[372407107,1752633038861,-460.0,0.00020507,2]
[372407109,1752633038870,-460.0,0.00020507,2]
[372407111,1752633038880,-499.48325055,0.00020508,2]
[372407113,1752633038889,-460.0,0.00020508,2]
[372407115,1752633038898,-462.63046953,0.00020508,2]
[372407117,1752633038908,-460.0,0.00020508,2]
[372407119,1752633038918,-458.42936105,0.00020508,2]
[372407121,1752633038927,-510.49485164,0.00020508,2]
[372407123,1752633038937,-460.52558871,0.00020508,2]
[372407125,1752633038947,-461.11052587,0.00020508,2]
[372407127,1752633038956,-461.2450292,0.00020508,2]
[372407129,1752633038965,-460.0,0.00020508,2]
[372407131,1752633038975,-460.0,0.00020508,2]
[372407133,1752633038984,-460.0,0.00020508,2]
[372407135,1752633038993,-460.0,0.00020508,2]
[372407137,1752633039003,-460.0,0.00020508,2]
[372407139,1752633039012,-460.0,0.00020508,2]
[372407141,1752633039022,-460.0,0.00020508,2]
[372407143,1752633039031,-290.28666044,0.00020508,2]
[372407145,1752633039041,-460.0,0.00020508,2]
[372407147,1752633039050,-460.0,0.00020508,2]
[372407149,1752633039059,-500.0,0.00020508,2]
[372407151,1752633039069,-461.01747171,0.00020509,2]
[372407153,1752633039078,-460.27175404,0.00020509,2]
[372407155,1752633039087,-462.65193878,0.00020509,2]
[372407157,1752633039097,-460.0,0.00020509,2]
[372407159,1752633039107,-460.54058945,0.00020509,2]
[372407161,1752633039117,-460.0,0.00020509,2]
[372407163,1752633039126,-464.43393097,0.00020509,2]
[372407165,1752633039135,-460.0,0.00020509,2]
[372407167,1752633039144,-461.20124503,0.00020509,2]
[372407169,1752633039153,-461.71422493,0.00020509,2]
[372407171,1752633039163,-461.18250872,0.00020509,2]
[372407173,1752633039172,-462.50222123,0.00020509,2]
[372407175,1752633039181,-464.77026943,0.00020509,2]
[372407177,1752633039190,-476.2038556,0.00020509,2]
[372407178,1752633039200,-460.85864476,0.00020509,2]
[372407180,1752633039209,-461.23750776,0.00020509,2]
[372407182,1752633039218,-460.85622493,0.00020509,2]
[372407184,1752633039228,-464.73715589,0.00020509,2]
[372407186,1752633039237,-464.98317774,0.00020509,2]
[372407188,1752633039247,-461.66239955,0.00020509,2]
[372407190,1752633039257,-461.00972071,0.00020509,2]
[372407193,1752633039267,-466.01849039,0.00020509,2]
[372407195,1752633039276,-465.14445071,0.00020509,2]
[372407197,1752633039286,-381.63274689,0.00020509,2]
[372407199,1752633039295,-461.75593064,0.00020509,2]
[372407201,1752633039304,-469.97642883,0.00020509,2]
[372407203,1752633039313,-462.22969858,0.00020509,2]
[372407205,1752633039322,-464.38269016,0.00020509,2]
[372407207,1752633039331,-460.0,0.00020509,2]
[372407209,1752633039341,-473.35770382,0.00020509,2]
[372407211,1752633039350,-461.12055603,0.00020509,2]
[372407213,1752633039360,-463.95347862,0.00020509,2]
[372407215,1752633039369,-460.0,0.00020509,2]
[372407217,1752633039379,-460.99723533,0.00020509,2]
[372407219,1752633039390,-461.69758513,0.00020509,2]
[372407221,1752633039400,-502.94065623,0.00020509,2]
[372407222,1752633039409,-467.21008073,0.00020509,2]
[372407224,1752633039418,-462.57431749,0.00020509,2]
[372407226,1752633039427,-460.48715477,0.00020509,2]
[372407229,1752633039439,-460.32971145,0.00020509,2]
[372407231,1752633039449,-462.87748406,0.00020509,2]
[372407233,1752633039458,-531.67436129,0.00020509,2]
[372407235,1752633039469,-461.72475877,0.00020509,2]
[372407237,1752633039479,-460.0,0.00020509,2]
[372407239,1752633039488,-461.03309652,0.00020509,2]
[372407241,1752633039497,-461.54663846,0.00020509,2]
[372407243,1752633039506,-460.0,0.00020509,2]
[372407245,1752633039516,-460.0,0.00020509,2]
[372407247,1752633039525,-464.88231839,0.00020509,2]
[372407249,1752633039536,-460.0,0.00020509,2]
[372407251,1752633039545,-460.0,0.00020509,2]
[372407253,1752633039555,-464.39187266,0.00020509,2]
[372407255,1752633039564,-460.57327563,0.00020608,2]
[372407257,1752633039574,-460.48204013,0.00020608,2]
[372407259,1752633039584,-462.64287117,0.00020608,2]
[372407261,1752633039593,-460.41935096,0.00020608,2]
[372407263,1752633039602,-461.84705179,0.00020608,2]
[372407265,1752633039611,-463.82444249,0.00020608,2]
[372407267,1752633039621,-460.0,0.00020608,2]
[372407269,1752633039630,-460.70499055,0.00020608,2]
[372407271,1752633039639,-460.91852821,0.00020608,2]
[372407273,1752633039648,-460.0,0.00020608,2]
[372407275,1752633039658,-224.10205988,0.00020608,2]
[372407277,1752633039667,-460.0,0.00020608,2]
[372407279,1752633039676,-460.0,0.00020608,2]
[372407281,1752633039685,-460.0,0.00020608,2]
[372407283,1752633039694,-460.0,0.00020608,2]
[372407285,1752633039704,-460.0,0.0002068,2]
[372407287,1752633039714,-1215.59,0.0002068,2]
[372407289,1752633039723,-460.0,0.0002068,2]
[372407291,1752633039733,-460.0,0.0002068,2]
[372407293,1752633039743,-460.0,0.0002068,2]
[372407295,1752633039752,-460.0,0.0002068,2]
[372407297,1752633039762,-368.26122474,0.00020681,2]
[372407299,1752633039771,-463.64735761,0.00020682,2]
[372407301,1752633039782,-460.0,0.00020682,2]
[372407303,1752633039792,-460.0,0.00020682,2]
[372407305,1752633039803,-460.0,0.00020682,2]
[372407307,1752633039813,-460.0,0.00020682,2]
[372407309,1752633039823,-500.0,0.0002078,2]
[372407311,1752633039832,-463.35218616,0.00020781,2]
[372407313,1752633039842,-397.1327924,0.00020781,2]
[372407315,1752633039851,-461.77587469,0.00020781,2]
[372407317,1752633039861,-467.71678588,0.00020781,2]
[372407319,1752633039871,-460.0,0.00020781,2]
[372407321,1752633039881,-460.0,0.00020781,2]
[372407323,1752633039892,-460.0,0.00020781,2]
[372407325,1752633039902,-460.0,0.00020783,2]
[372407327,1752633039912,-460.0,0.00020954,2]
[372407329,1752633039922,-1215.59,0.00020954,2]
[372407331,1752633039931,-460.0,0.00020954,2]
[372407333,1752633039941,-305.89087608,0.00020954,2]
[372407335,1752633039951,-489.3981555,0.00020954,2]
[372407337,1752633039960,-460.0,0.00020954,2]
[372407339,1752633039972,-462.37344203,0.00020956,2]
[372407341,1752633039988,-460.0,0.00020956,2]
[372407343,1752633039997,-172.01038061,0.00020959,2]
[372407345,1752633040007,-300.0,0.00020976,2]
[372407347,1752633040018,-667.7253088,0.00021,10]
[372407349,1752633040028,-460.0,0.00021055,2]
[372407351,1752633040037,-460.0,0.00021055,2]
[372407353,1752633040047,-460.0,0.00021055,2]
[372407355,1752633040057,-460.0,0.00021057,2]
[372407357,1752633040067,-502.64324858,0.00021068,2]
[372407359,1752633040078,-977.0,0.00021078,2]
[372407362,1752633040087,-203.27072837,0.00021108,2]
[372407364,1752633040097,-2000.0,0.000212,2]
[372407365,1752633040106,-160.0,0.00021201,2]
[372407367,1752633040116,-230.8109288,0.00021208,2]
[372407370,1752633040125,-160.0,0.00021208,2]
[372407371,1752633040135,-460.0,0.00021228,2]
[372407373,1752633040144,-1215.59,0.00021228,2]
[372407375,1752633040153,-460.0,0.00021228,2]
[372407377,1752633040163,-460.0,0.00021228,2]
[372407379,1752633040172,-460.0,0.0002123,2]
[372407381,1752633040181,-460.0,0.00021329,2]
[372407383,1752633040191,-460.0,0.00021329,2]
[372407385,1752633040200,-460.0,0.00021329,2]
[372407387,1752633040210,-460.0,0.00021331,2]
[372407389,1752633040219,-460.0,0.00021502,2]
[372407391,1752633040228,-1215.59,0.00021502,2]
[372407393,1752633040238,-460.0,0.00021502,2]
[372407395,1752633040248,-326.11767153,0.00021502,2]
[372407397,1752633040257,-460.0,0.00021504,2]
[372407399,1752633040266,-460.0,0.00021603,2]
[372407401,1752633040276,-460.0,0.00021603,2]
[372407403,1752633040285,-460.0,0.00021603,2]
[372407405,1752633040294,-460.0,0.00021605,2]
[372407407,1752633040303,-500.0,0.00021686,2]
[372407409,1752633040313,-1146.72,0.000217,2]
[372407411,1752633040322,-368.2612247,0.00021711,2]
[372407413,1752633040331,-460.0,0.00021776,2]